[Event "Prague Open 2024"]
[Site "Prague"]
[Date "2024.01.06"]
[Round "2.19"]
[White "Tolmacevs, Artjoms"]
[Black "Brnusak, Tomas"]
[Result "1-0"]
[ECO "C45"]
[WhiteElo "1928"]
[BlackElo "2229"]
[Annotator "RC"]
[PlyCount "77"]
[EventDate "2024.01.02"]
[EventType "swiss"]
[EventCountry "CZE"]
[SourceTitle "playchess.com"]
[Source "ChessBase"]
[SourceQuality "1"]
[TimeControl "40/5400+30:1800+30"]

1. e4 {[%emt 0:00:17]} e5 {[%emt 0:00:08]} 2. Nf3 {[%emt 0:00:06]} Nc6 {[%emt 0:00:04]} 3. d4 {[%emt 0:00:08]} exd4 {[%emt 0:00:06]} 4. Nxd4 {[%emt 0:00:07]} Nf6 {[%emt 0:00:07]} 5. Nxc6 {[%emt 0:00:07]} bxc6 {[%emt 0:00:05]} 6. e5 {[%emt 0:00:06]} Qe7 {[%emt 0:00:05]} 7. Qe2 {[%emt 0:00:05]} Nd5 {[%emt 0:00:06]} 8. c4 {[%emt 0:00:06]} Nb6 {[%emt 0:00:08]} 9. Nd2 {[%emt 0:00:07]} a5 {[%emt 0:00:05]} 10. b3 {[%emt 0:11:34]} a4 {[%emt 0:00:30]} 11. Bb2 {[%emt 0:00:05]} axb3 {[%emt 0:00:05]} 12. axb3 {[%emt 0:00:03]} Rxa1+ {[%emt 0:00:06]} 13. Bxa1 {[%emt 0:00:04]} Qa3 {[%emt 0:00:06]} 14. Qd1 {[%emt 0:01:50]} Bb4 {[%emt 0:00:07]} 15. Bd3 {[%emt 0:00:05]} Qa2 {[%emt 0:00:23]} 16. Bc2 {[%emt 0:01:31]} Qa5 {[%emt 0:00:59]} 17. Ke2 {[%emt 0:02:59]} d5 {[%emt 0:04:31]} 18. exd6 {[%emt 0:19:47]} O-O {[%emt 0:01:21]} 19. Ne4 {[%emt 0:01:45]} cxd6 {[%emt 0:20:41]} 20. Qd4 {[%emt 0:10:43]} f6 {[%emt 0:00:41]} 21. Rd1 {[%emt 0:06:50]} Qh5+ {[%emt 0:20:13]} 22. Kf1 {[%emt 0:02:08]} Qxh2 {[%emt 0:01:32]} 23. Ng3 {[%emt 0:24:24]} Bc5 {[%emt 0:02:14]} 24. Qf4 {[%emt 0:02:38]} Nd7 {[%emt 0:08:18]} 25. Bc3 {[%emt 0:05:22]} Ne5 {[%emt 0:01:26]} 26. b4 {[%emt 0:01:28]} Ba7 {[%emt 0:01:39]} 27. Bb3 {[%emt 0:03:43]} d5 {[%emt 0:04:49]} 28. b5 {[%emt 0:03:12]} Bb8 {[%emt 0:12:32]} 29. cxd5 {[%emt 0:00:27]} cxd5 {[%emt 0:01:00]} 30. Bxe5 {[%emt 0:00:54]} Bxe5 {[%emt 0:00:08]} 31. Rxd5 {[%emt 0:00:52]} Be6 {[%emt 0:02:06]} 32. Rxe5 {[%emt 0:00:05]} Bxb3 {[%emt 0:00:09]} 33. Rh5 {[%emt 0:00:02]} Qxh5 {[%emt 0:02:42]} 34. Nxh5 {[%emt 0:00:02]} Bf7 {[%emt 0:01:09]} 35. b6 {[%emt 0:01:24]} Rd8 {[%emt 0:00:52]} 36. Ng3 {[%emt 0:00:56]} Bd5 {[%emt 0:00:06]} 37. Qc7 {[%emt 0:00:12]} Rf8 {[%emt 0:00:30]} 38. Nf5 {[%emt 0:00:19]} Bf7 {[%emt 0:00:11]} 39. b7 {[%emt 0:00:06]} 1-0

[Event "Prague Open 2024"]
[Site "Prague"]
[Date "2024.01.06"]
[Round "2.20"]
[White "Korniichuk, Oleksandra"]
[Black "Stanojevic, Ilija"]
[Result "0-1"]
[ECO "B20"]
[WhiteElo "1924"]
[BlackElo "2206"]
[Annotator "RC"]
[PlyCount "138"]
[EventDate "2024.01.02"]
[EventType "swiss"]
[EventCountry "CZE"]
[SourceTitle "playchess.com"]
[Source "ChessBase"]
[SourceQuality "1"]
[TimeControl "40/5400+30:1800+30"]

1. e4 {[%emt 0:00:19]} c5 {[%emt 0:00:35]} 2. Be2 {[%emt 0:00:21]} Nc6 {[%emt 0:00:04]} 3. f4 {[%emt 0:00:11]} e6 {[%emt 0:00:07]} 4. Nf3 {[%emt 0:00:06]} d5 {[%emt 0:00:37]} 5. d3 {[%emt 0:00:27]} Bd6 {[%emt 0:00:06]} 6. O-O {[%emt 0:02:37]} Nge7 {[%emt 0:00:04]} 7. c3 {[%emt 0:00:52]} O-O {[%emt 0:00:45]} 8. Na3 {[%emt 0:02:49]} a6 {[%emt 0:00:40]} 9. e5 {[%emt 0:06:12]} Bc7 {[%emt 0:00:05]} 10. Be3 {[%emt 0:00:18]} d4 {[%emt 0:00:59]} 11. cxd4 {[%emt 0:00:29]} cxd4 {[%emt 0:00:02]} 12. Bf2 {[%emt 0:00:14]} b5 {[%emt 0:00:08]} 13. Nc2 {[%emt 0:01:03]} Bb6 {[%emt 0:01:20]} 14. Qd2 {[%emt 0:02:42]} h6 {[%emt 0:01:21]} 15. g4 {[%emt 0:08:30]} Bb7 {[%emt 0:02:34]} 16. Nh4 {[%emt 0:05:45]} Nd5 {[%emt 0:02:17]} 17. Ng2 {[%emt 0:03:35]} Qd7 {[%emt 0:03:56]} 18. Bf3 {[%emt 0:00:33]} Rad8 {[%emt 0:02:23]} 19. Be4 {[%emt 0:01:34]} f6 {[%emt 0:03:26]} 20. exf6 {[%emt 0:04:23]} Nxf6 {[%emt 0:04:49]} 21. Bf3 {[%emt 0:03:45]} e5 {[%emt 0:00:55]} 22. h3 {[%emt 0:05:33]} exf4 {[%emt 0:03:21]} 23. Nxf4 {[%emt 0:01:50]} Ne5 {[%emt 0:00:09]} 24. Bxb7 {[%emt 0:02:00]} Qxb7 {[%emt 0:01:09]} 25. Ne1 {[%emt 0:01:06]} Rde8 {[%emt 0:02:52]} 26. Bg3 {[%emt 0:04:50]} g5 {[%emt 0:03:17]} 27. Qg2 {[%emt 0:03:07]} Qd7 {[%emt 0:01:50]} 28. Ne2 {[%emt 0:01:28]} Nd5 {[%emt 0:08:46]} 29. Rxf8+ {[%emt 0:02:17]} Kxf8 {[%emt 0:00:06]} 30. Bxe5 {[%emt 0:05:52]} Rxe5 {[%emt 0:00:07]} 31. Nc2 {[%emt 0:01:19]} Kg8 {[%emt 0:02:28]} 32. Rf1 {[%emt 0:06:16]} Qe6 {[%emt 0:08:52]} 33. Qf3 {[%emt 0:05:31]} Bc5 {[%emt 0:13:51]} 34. Rf2 {[%emt 0:00:49]} Qe7 {[%emt 0:07:03]} 35. Kh1 {[%emt 0:05:02]} Kh7 {[%emt 0:04:21]} 36. Ncxd4 {[%emt 0:07:56]} Bxd4 {[%emt 0:01:11]} 37. Nxd4 {[%emt 0:00:07]} Re1+ {[%emt 0:00:26]} 38. Rf1 {[%emt 0:01:48]} Nf4 {[%emt 0:01:00]} 39. Nf5 {[%emt 0:01:43]} Rxf1+ {[%emt 0:02:36]} 40. Qxf1 {[%emt 0:00:06]} Qc5 {[%emt 0:02:53]} 41. d4 {[%emt 0:33:41]} Qd5+ {[%emt 0:32:50]} 42. Kh2 {[%emt 0:00:00]} Qe4 {[%emt 0:00:00]} 43. Qf2 {[%emt 0:00:00]} Qd3 {[%emt 0:00:00]} 44. Ng3 {[%emt 0:00:00]} Kg6 {[%emt 0:00:00]} 45. b3 {[%emt 0:00:00]} b4 {[%emt 0:00:00]} 46. Qb2 {[%emt 0:00:00]} Kf7 {[%emt 0:00:00]} 47. Qf2 {[%emt 0:00:00]} Ke6 {[%emt 0:00:00]} 48. Qe1+ {[%emt 0:00:00]} Kd7 {[%emt 0:00:00]} 49. Qf2 {[%emt 0:00:00]} Kc6 {[%emt 0:00:00]} 50. Qf1 {[%emt 0:00:00]} Qxf1 {[%emt 0:00:00]} 51. Nxf1 {[%emt 0:00:00]} Kd5 {[%emt 0:00:00]} 52. Ne3+ {[%emt 0:00:00]} Kxd4 {[%emt 0:00:00]} 53. Nf5+ {[%emt 0:00:00]} Kc3 {[%emt 0:00:00]} 54. Nxh6 {[%emt 0:00:00]} Kb2 {[%emt 0:00:00]} 55. Nf7 {[%emt 0:00:00]} Ne6 {[%emt 0:00:00]} 56. Nxg5 {[%emt 0:05:58]} Nxg5 {[%emt 0:00:00]} 57. h4 {[%emt 0:00:12]} Nf7 {[%emt 0:00:00]} 58. g5 {[%emt 0:00:42]} Kxa2 {[%emt 0:00:00]} 59. g6 {[%emt 0:01:56]} Nh6 {[%emt 0:00:00]} 60. Kg3 {[%emt 0:00:18]} Kxb3 {[%emt 0:00:00]} 61. Kf4 {[%emt 0:00:14]} Kc3 {[%emt 0:00:00]} 62. Kg5 {[%emt 0:00:15]} Ng8 {[%emt 0:00:00]} 63. g7 {[%emt 0:00:26]} b3 {[%emt 0:00:00]} 64. Kg6 {[%emt 0:00:04]} b2 {[%emt 0:00:00]} 65. Kf7 {[%emt 0:00:26]} b1=Q {[%emt 0:00:00]} 66. Kxg8 {[%emt 0:00:05]} Qf5 {[%emt 0:00:00]} 67. Kh8 {[%emt 0:01:23]} Qh5+ {[%emt 0:00:00]} 68. Kg8 {[%emt 0:00:05]} Qxh4 {[%emt 0:00:00]} 69. Kf8 {[%emt 0:00:07]} Qf6+ {[%emt 0:00:00]} 0-1

[Event "Prague Open 2024"]
[Site "Prague"]
[Date "2024.01.06"]
[Round "3.1"]
[White "Shao, Wenbin"]
[Black "Agdestein, Simen"]
[Result "0-1"]
[ECO "B66"]
[WhiteElo "2112"]
[BlackElo "2568"]
[Annotator "TA"]
[PlyCount "58"]
[EventDate "2024.01.02"]
[EventType "swiss"]
[EventCountry "CZE"]
[SourceTitle "playchess.com"]
[Source "ChessBase"]
[SourceQuality "1"]
[TimeControl "40/5400+30:1800+30"]

{[%evp 23,58,0,36,16,33,-31,0,-95,-103,-81,-39,-35,-37,-104,-122,-245,-248,-252,-233,-339,-327,-339,-328,-326,-338,-366,-358,-516,-510,-504,-509,-467,-439,-910,-908,-891,-858]} 1. e4 {[%emt 0:00:31] Alboredo,Julia} c5 {[%emt 0:01:15]} 2. Nf3 {[%emt 0:00:10]} Nc6 {[%emt 0:01:06]} 3. d4 {[%emt 0:00:10]} cxd4 {[%emt 0:00:03]} 4. Nxd4 {[%emt 0:00:05]} Nf6 {[%emt 0:00:06]} 5. Nc3 {[%emt 0:00:04]} d6 {[%emt 0:00:14]} 6. Bg5 {[%emt 0:04:36]} e6 {[%emt 0:00:06]} 7. Qd2 {[%emt 0:00:03]} a6 {[%emt 0:01:55]} 8. O-O-O {[%emt 0:00:07]} Be7 {[%emt 0:00:49]} 9. f3 {[%emt 0:02:11]} O-O {[%emt 0:05:58]} 10. h4 {[%emt 0:01:13]} Nxd4 {[%emt 0:08:17]} 11. Qxd4 {[%emt 0:00:06]} b5 {[%emt 0:01:24][%cal Bb7b5,Bb5b4][%mdl 32]} 12. Kb1 {[%emt 0:14:24]} Qc7 {[%emt 0:09:47]} 13. h5 {[%emt 0:07:35] Strongly threatening h6. B63: Sicilian: Richter-Rauzer: 7...Be7 and unusual Black 7th moves.} h6 {[%emt 0:01:23] [#]} 14. Be3 $146 {[%emt 0:00:27]} (14. Bxf6 $14 Bxf6 15. Qxd6 Qxd6 16. Rxd6) ({Predecessor:} 14. Bh4 Bb7 15. Ne2 Rac8 16. Qd2 Rfd8 17. Re1 e5 18. Bxf6 Bxf6 19. Nc3 Bg5 20. Qd1 Qa5 21. Nd5 Bxd5 22. exd5 Rxc2 23. Kxc2 Qxa2 24. f4 Rc8+ 25. Kd2 Bxf4+ 26. Ke2 Qxb2+ 27. Kf3 Rc1 {0-1 Ivanchuk,V (2740)-Anand,V (2770) Linares 15th 1998 (12)}) 14... Rb8 {[%emt 0:11:39]} 15. Qd2 {[%emt 0:07:46]} (15. g4 $11 {keeps the balance.}) 15... b4 $1 $17 {[%emt 0:02:59]} 16. Ne2 {[%emt 0:00:15]} d5 {[%emt 0:05:22]} 17. e5 {[%emt 0:08:48]} Nd7 {[%emt 0:00:20][%cal Bf6d7,Bd7e5,Be5g4][%mdl 32]} (17... Qxe5 $2 18. Bf4 $18) 18. Nd4 {[%emt 0:18:38]} (18. f4 $15) 18... Nxe5 {[%emt 0:04:10]} ({Resist} 18... Qxe5 19. Nc6 Qd6 20. Nxb8 Qxb8 21. g4 $16) 19. Bxh6 {[%emt 0:02:31] White does not recover from this.} gxh6 $19 {[%emt 0:07:06]} 20. Qxh6 {[%emt 0:02:04] [#]} Rb6 $1 {[%emt 0:06:08]} 21. Rh3 {[%emt 0:02:12] [#]} (21. g4 $142) 21... Ng4 $1 {[%emt 0:03:56][%mdl 512]} 22. Qd2 {[%emt 0:04:59]} e5 {[%emt 0:01:03]} 23. fxg4 {[%emt 0:04:18]} exd4 {[%emt 0:00:11]} 24. Qxd4 {[%emt 0:01:36]} Bf6 {[%emt 0:01:28] Inhibits Bd3.} 25. Qd3 {[%emt 0:01:14]} (25. Qf2 {keeps fighting.}) 25... Qe5 {[%emt 0:03:47][%csl Gf6][%cal Re5b2] Black is clearly winning.} ({Less strong is} 25... Bxg4 26. Rg3 $16) 26. Qb3 {[%emt 0:00:09]} Re8 {[%emt 0:02:30]} ({Not} 26... Bxg4 27. Rg3 $16) 27. h6 {[%emt 0:02:30]} Qe1 {[%emt 0:03:27][%cal Re1d1][%mdl 64] Back Rank} 28. Qd3 {[%emt 0:02:16] [#]} (28. Qf3 $142) 28... Rbe6 $1 {[%emt 0:03:11][%cal Oe1d1] Threatens to win with ...Qxd1+!} 29. Rh1 {[%emt 0:03:05] [#]} Re3 $1 {[%emt 0:06:49] Magnificent play by Agdestein!   Weighted Error Value: White=0.63/Black=0.08 (flawless)} 0-1

[Event "Prague Open 2024"]
[Site "Prague"]
[Date "2024.01.06"]
[Round "3.2"]
[White "Poetsch, Hagen"]
[Black "van der Merwe, Alexander"]
[Result "1-0"]
[ECO "B23"]
[WhiteElo "2471"]
[BlackElo "2113"]
[Annotator "TA"]
[PlyCount "57"]
[EventDate "2024.01.02"]
[EventType "swiss"]
[EventCountry "CZE"]
[SourceTitle "playchess.com"]
[Source "ChessBase"]
[SourceQuality "1"]
[TimeControl "40/5400+30:1800+30"]

{[%evp 17,57,27,50,27,26,27,45,49,109,107,110,106,102,89,121,121,125,123,129,126,168,135,149,149,200,186,208,191,262,254,262,255,569,574,574,560,622,620,822,802,789,779]} 1. e4 c5 2. Nc3 d6 3. Nge2 Nf6 4. g3 g6 5. d4 cxd4 6. Nxd4 Bg7 7. Bg2 O-O 8. O-O a6 9. h3 Qc7 10. Be3 {B91: Sicilian Najdorf: 6 g3.} Nc6 11. Qd2 Ne5 12. b3 $1 {Dodges Nc4. White is slightly better.} Bd7 (12... Nc6 $14) 13. Nd5 $16 Qd8 {[#]} 14. Rad1 $146 ({Predecessor:} 14. Bh6 Ne8 15. Bg5 f6 16. Be3 Nf7 17. c4 e5 18. Ne2 Be6 19. Rad1 Rb8 20. Kh2 {1-0 Favarel,J (2209)-Draoui,N (2369) FRA-chT2A 0506 2005 (5.1)}) 14... Nc6 15. Ne2 {White is much more active. The black rooks are badly placed.} Nxd5 16. exd5 Nb8 {[%cal Bc6b8,Bb8d7,Bd7e5][%mdl 32]} 17. c4 Qc8 18. Kh2 Be8 19. Rc1 Nd7 {Wards off c5} 20. b4 b6 (20... Ne5 $16) 21. Nd4 $18 {[%cal Be2d4,Bd4c6,Bc6e7,Be7c8,Bc8d6][%mdl 32]} Qc7 22. Rfe1 Rc8 (22... Nf6 $142 23. Nb3 Ba4) 23. Nc6 Ne5 {[%cal Re5c6]} 24. Bxb6 {[%mdl 64] [#] Deflection} Qxb6 (24... Qb7 {is tougher.}) 25. Nxe7+ {White is clearly winning.} Kh8 26. Nxc8 Qc7 27. f4 Nxc4 {[#]} 28. Rxc4 $1 {[%mdl 64] Remove Defender} Qxc4 29. Nxd6 {White took control after the opening.   Weighted Error Value: White=0.04 (flawless) /Black=0.46} 1-0

[Event "Prague Open 2024"]
[Site "Prague"]
[Date "2024.01.06"]
[Round "3.3"]
[White "Neuman, Petr"]
[Black "Trapl, Dalibor"]
[Result "1-0"]
[ECO "B54"]
[WhiteElo "2398"]
[BlackElo "2108"]
[Annotator "RC"]
[PlyCount "63"]
[EventDate "2024.01.02"]
[EventType "swiss"]
[EventCountry "CZE"]
[SourceTitle "playchess.com"]
[Source "ChessBase"]
[SourceQuality "1"]
[TimeControl "40/5400+30:1800+30"]

1. e4 c5 2. Nf3 d6 3. d4 cxd4 4. Nxd4 Nf6 5. f3 a6 6. c4 Nc6 7. Be3 e6 8. Nc3 Be7 9. Be2 O-O 10. O-O Bd7 11. Qd2 Qb8 12. a4 a5 13. Ndb5 Ra6 14. Rad1 Rd8 15. Nxd6 Nd4 16. Bxd4 Bxd6 17. g3 Bxg3 18. f4 Bh4 19. Qe3 Ne8 20. Bb6 Nc7 21. Nb5 Bxb5 22. cxb5 Rxd1 23. Rxd1 Ra8 24. Qc5 Ne8 25. e5 Qc8 26. Qxc8 Rxc8 27. Bf3 Rc4 28. Bxb7 Rxa4 29. Bc6 Kf8 30. Bc5+ Be7 31. Bxe7+ Kxe7 32. Rd7+ 1-0

[Event "Prague Open 2024"]
[Site "Prague"]
[Date "2024.01.06"]
[Round "3.4"]
[White "Samborski, Henryk"]
[Black "Sowinski, Pawel"]
[Result "0-1"]
[ECO "A01"]
[WhiteElo "2079"]
[BlackElo "2357"]
[Annotator "RC"]
[PlyCount "54"]
[EventDate "2024.01.02"]
[EventType "swiss"]
[EventCountry "CZE"]
[SourceTitle "playchess.com"]
[Source "ChessBase"]
[SourceQuality "1"]
[TimeControl "40/5400+30:1800+30"]

1. b3 {[%emt 0:03:41]} e5 {[%emt 0:00:07]} 2. Bb2 {[%emt 0:00:09]} Nc6 {[%emt 0:00:08]} 3. c4 {[%emt 0:00:41]} f5 {[%emt 0:02:30]} 4. g3 {[%emt 0:03:30]} Nf6 {[%emt 0:00:32]} 5. Bg2 {[%emt 0:00:07]} d6 {[%emt 0:00:12]} 6. Nf3 {[%emt 0:02:59]} Be7 {[%emt 0:00:41]} 7. O-O {[%emt 0:00:35]} O-O {[%emt 0:00:05]} 8. Nc3 {[%emt 0:02:45]} Qe8 {[%emt 0:03:29]} 9. d4 {[%emt 0:03:22]} e4 {[%emt 0:00:27]} 10. Ne1 {[%emt 0:00:17]} Qg6 {[%emt 0:02:14]} 11. Nb5 {[%emt 0:07:45]} Bd8 {[%emt 0:07:09]} 12. d5 {[%emt 0:02:11]} Ne7 {[%emt 0:03:15]} 13. a4 {[%emt 0:06:52]} f4 {[%emt 0:03:22]} 14. Bxf6 {[%emt 0:26:35]} Rxf6 {[%emt 0:00:45]} 15. Qc2 {[%emt 0:05:54]} fxg3 {[%emt 0:06:20]} 16. fxg3 {[%emt 0:04:38]} Rxf1+ {[%emt 0:00:04]} 17. Bxf1 {[%emt 0:00:10]} Nf5 {[%emt 0:00:11]} 18. Qxe4 {[%emt 0:00:36]} c6 {[%emt 0:00:36]} 19. Nc3 {[%emt 0:02:50]} Bb6+ {[%emt 0:01:18]} 20. Kh1 {[%emt 0:02:50]} Bd7 {[%emt 0:00:29]} 21. Ng2 {[%emt 0:04:05]} Re8 {[%emt 0:00:48]} 22. Qd3 {[%emt 0:00:49]} Be3 {[%emt 0:05:31]} 23. dxc6 {[%emt 0:10:39]} bxc6 {[%emt 0:01:17]} 24. Rd1 {[%emt 0:00:14]} Re5 {[%emt 0:07:25]} 25. c5 {[%emt 0:05:56]} Nxg3+ {[%emt 0:01:28]} 26. hxg3 {[%emt 0:00:03]} Rh5+ {[%emt 0:00:07]} 27. Nh4 {[%emt 0:00:15]} Rxh4+ {[%emt 0:00:27]} 0-1

[Event "Prague Open 2024"]
[Site "Prague"]
[Date "2024.01.06"]
[Round "3.5"]
[White "Ivanov, Mike"]
[Black "Krivanek, Vladimir"]
[Result "1-0"]
[ECO "A04"]
[WhiteElo "2356"]
[BlackElo "2091"]
[Annotator "RC"]
[PlyCount "117"]
[EventDate "2024.01.02"]
[EventType "swiss"]
[EventCountry "CZE"]
[SourceTitle "playchess.com"]
[Source "ChessBase"]
[SourceQuality "1"]
[TimeControl "40/5400+30:1800+30"]

1. Nf3 {[%emt 0:00:02]} c5 {[%emt 0:10:54]} 2. c4 {[%emt 0:03:16]} g6 {[%emt 0:02:41]} 3. e4 {[%emt 0:01:39]} a6 {[%emt 0:00:49]} 4. d4 {[%emt 0:00:25]} cxd4 {[%emt 0:00:16]} 5. Nxd4 {[%emt 0:02:11]} Bg7 {[%emt 0:01:51]} 6. Nc3 {[%emt 0:01:18]} d6 {[%emt 0:01:42]} 7. Be3 {[%emt 0:00:45]} Nf6 {[%emt 0:01:36]} 8. Be2 {[%emt 0:00:36]} O-O {[%emt 0:03:29]} 9. O-O {[%emt 0:00:15]} Nc6 {[%emt 0:04:28]} 10. f3 {[%emt 0:05:52]} Nd7 {[%emt 0:02:48]} 11. Rc1 {[%emt 0:05:05]} Re8 {[%emt 0:02:52]} 12. Nd5 {[%emt 0:04:18]} e6 {[%emt 0:04:40]} 13. Nc3 {[%emt 0:00:50]} Nf8 {[%emt 0:04:47]} 14. Qd2 {[%emt 0:22:25]} Nxd4 {[%emt 0:03:29]} 15. Bxd4 {[%emt 0:00:21]} Bxd4+ {[%emt 0:04:50]} 16. Qxd4 {[%emt 0:00:03]} e5 {[%emt 0:00:15]} 17. Qd2 {[%emt 0:05:03]} Ne6 {[%emt 0:01:05]} 18. Bd1 {[%emt 0:00:07]} b5 {[%emt 0:04:17]} 19. Bb3 {[%emt 0:02:28]} b4 {[%emt 0:05:21]} 20. Nd5 {[%emt 0:00:16]} a5 {[%emt 0:00:10]} 21. Ba4 {[%emt 0:03:20]} Rf8 {[%emt 0:00:16]} 22. Kh1 {[%emt 0:01:23]} Bb7 {[%emt 0:01:30]} 23. Ne3 {[%emt 0:04:10]} f5 {[%emt 0:03:40]} 24. exf5 {[%emt 0:01:11]} gxf5 {[%emt 0:00:13]} 25. Rcd1 {[%emt 0:06:50]} f4 {[%emt 0:01:03]} 26. Nd5 {[%emt 0:06:43]} Nd4 {[%emt 0:01:09]} 27. Bc2 {[%emt 0:00:46]} Bxd5 {[%emt 0:05:19]} 28. cxd5 {[%emt 0:00:12]} Rc8 {[%emt 0:05:22]} 29. Be4 {[%emt 0:00:34]} Rf7 {[%emt 0:00:28]} 30. Rc1 {[%emt 0:10:02]} Kh8 {[%emt 0:11:29]} 31. Qf2 {[%emt 0:08:13]} Rfc7 {[%emt 0:01:46]} 32. Rxc7 {[%emt 0:02:01]} Rxc7 {[%emt 0:00:14]} 33. Qd2 {[%emt 0:00:44]} Qh4 {[%emt 0:06:19]} 34. Rg1 {[%emt 0:00:54]} Qf6 {[%emt 0:03:25]} 35. Rc1 {[%emt 0:00:28]} Qd8 {[%emt 0:01:13]} 36. g3 {[%emt 0:01:32]} fxg3 {[%emt 0:00:48]} 37. hxg3 {[%emt 0:01:04]} Rxc1+ {[%emt 0:01:24]} 38. Qxc1 {[%emt 0:00:02]} Kg7 {[%emt 0:00:37]} 39. Kg2 {[%emt 0:00:22]} h6 {[%emt 0:00:31]} 40. f4 {[%emt 0:01:43]} Qe7 {[%emt 0:00:44]} 41. Qd1 {[%emt 0:01:37]} Qf6 {[%emt 0:08:23]} 42. Qg4+ {[%emt 0:00:37]} Kf8 {[%emt 0:02:02]} 43. Kh3 {[%emt 0:10:44]} Ke7 {[%emt 0:04:08]} 44. Bd3 {[%emt 0:06:28]} exf4 {[%emt 0:05:49]} 45. gxf4 {[%emt 0:01:14]} h5 {[%emt 0:00:56]} 46. Qg3 {[%emt 0:03:00]} Nf5 {[%emt 0:01:16]} 47. Bxf5 {[%emt 0:02:43]} Qxf5+ {[%emt 0:00:09]} 48. Kh4 {[%emt 0:00:12]} Qf6+ {[%emt 0:08:25]} 49. Qg5 {[%emt 0:00:53]} Kf7 {[%emt 0:00:18]} 50. b3 {[%emt 0:00:27]} Qa1 {[%emt 0:01:39]} 51. Qxh5+ {[%emt 0:02:08]} Ke7 {[%emt 0:00:31]} 52. Qe2+ {[%emt 0:01:18]} Kd8 {[%emt 0:00:51]} 53. Qe6 {[%emt 0:00:12]} Qh1+ {[%emt 0:00:44]} 54. Kg5 {[%emt 0:00:20]} Qg1+ {[%emt 0:00:26]} 55. Kf5 {[%emt 0:01:28]} Qc5 {[%emt 0:00:59]} 56. Kg6 {[%emt 0:00:14]} Qc2+ {[%emt 0:00:42]} 57. Kg7 {[%emt 0:01:23]} Qc5 {[%emt 0:00:55]} 58. Kf8 {[%emt 0:00:57]} Kc7 {[%emt 0:00:46]} 59. Ke7 {[%emt 0:00:31]} 1-0

[Event "Prague Open 2024"]
[Site "Prague"]
[Date "2024.01.06"]
[Round "3.6"]
[White "Teng, Jiarong"]
[Black "Mis, Mieszko"]
[Result "0-1"]
[ECO "B07"]
[WhiteElo "2063"]
[BlackElo "2301"]
[Annotator "ChessBase"]
[PlyCount "76"]
[EventDate "2024.01.02"]
[EventType "swiss"]
[EventCountry "CZE"]
[SourceTitle "playchess.com"]
[Source "ChessBase"]
[SourceQuality "1"]
[TimeControl "40/5400+30:1800+30"]

1. e4 {[%emt 0:06:24]} d6 {[%emt 0:00:27]} 2. d4 {[%emt 0:00:37]} Nf6 {[%emt 0:00:08]} 3. Nc3 {[%emt 0:00:06]} c6 {[%emt 0:00:12]} 4. Be3 {[%emt 0:01:11]} Qb6 {[%emt 0:02:55]} 5. a3 {[%emt 0:03:16]} Ng4 {[%emt 0:10:41]} 6. Bc1 {[%emt 0:02:39]} e5 {[%emt 0:02:18]} 7. Nf3 {[%emt 0:01:46]} Nd7 {[%emt 0:02:09]} 8. h3 {[%emt 0:00:43]} Ngf6 {[%emt 0:00:58]} 9. Be3 {[%emt 0:06:58]} Qc7 {[%emt 0:03:00]} 10. g4 {[%emt 0:04:15]} g6 {[%emt 0:07:01]} 11. Qd2 {[%emt 0:01:08]} a5 {[%emt 0:07:15]} 12. Be2 {[%emt 0:04:16]} Rb8 {[%emt 0:05:49]} 13. g5 {[%emt 0:10:25]} Nh5 {[%emt 0:01:16]} 14. Nh2 {[%emt 0:02:27]} Nf4 {[%emt 0:04:44]} 15. Bxf4 {[%emt 0:02:45]} exf4 {[%emt 0:00:06]} 16. Qxf4 {[%emt 0:00:36]} Bg7 {[%emt 0:01:33]} 17. Rd1 {[%emt 0:04:53]} h5 {[%emt 0:02:08]} 18. gxh6 {[%emt 0:09:20]} Bxh6 {[%emt 0:00:39]} 19. Qg3 {[%emt 0:00:22]} b5 {[%emt 0:02:58]} 20. Ng4 {[%emt 0:06:04]} Bg7 {[%emt 0:01:22]} 21. b4 {[%emt 0:09:38]} axb4 22. axb4 {[%emt 0:00:00]} Ra8 {[%emt 0:06:21]} 23. Kf1 {[%emt 0:04:37]} Nf6 {[%emt 0:07:21]} 24. Nxf6+ {[%emt 0:06:48]} Bxf6 {[%emt 0:00:03]} 25. e5 {[%emt 0:02:37]} dxe5 {[%emt 0:01:31]} 26. Ne4 {[%emt 0:00:01]} Bg7 {[%emt 0:01:24]} 27. Nc5 {[%emt 0:04:10]} Bf5 {[%emt 0:07:54]} 28. c4 {[%emt 0:01:15]} bxc4 {[%emt 0:00:46]} 29. Bxc4 {[%emt 0:00:29]} Rd8 {[%emt 0:01:25]} 30. Kg2 {[%emt 0:00:55]} Qb8 {[%emt 0:03:16]} 31. Qb3 {[%emt 0:00:07]} O-O {[%emt 0:01:50]} 32. d5 {[%emt 0:00:25]} Qc7 {[%emt 0:01:52]} 33. h4 {[%emt 0:01:53]} e4 {[%emt 0:00:59]} 34. dxc6 {[%emt 0:01:14]} Bg4 {[%emt 0:01:03]} 35. b5 {[%emt 0:03:05]} Bf3+ {[%emt 0:00:18]} 36. Kh3 {[%emt 0:00:08]} Qf4 {[%emt 0:01:02]} 37. Bxf7+ {[%emt 0:00:27]} Kh8 {[%emt 0:01:42]} 38. Be6 {[%emt 0:00:12]} Bf6 {[%emt 0:00:27]} 0-1

[Event "Prague Open 2024"]
[Site "Prague"]
[Date "2024.01.06"]
[Round "3.7"]
[White "Grave, Jacob Templen"]
[Black "Stursa, Jan"]
[Result "1-0"]
[ECO "D80"]
[WhiteElo "2296"]
[BlackElo "2034"]
[Annotator "RC"]
[PlyCount "75"]
[EventDate "2024.01.02"]
[EventType "swiss"]
[EventCountry "CZE"]
[SourceTitle "playchess.com"]
[Source "ChessBase"]
[SourceQuality "1"]
[TimeControl "40/5400+30:1800+30"]

1. d4 Nf6 2. c4 g6 3. Nc3 d5 4. Bg5 Ne4 5. Bh4 Nxc3 6. bxc3 dxc4 7. e3 Be6 8. Nf3 Bg7 9. Be2 O-O 10. O-O c5 11. Rb1 Bd5 12. Qc2 f5 13. Nd2 cxd4 14. cxd4 Nd7 15. Bxc4 Nf6 16. Bxf6 Rxf6 17. Rxb7 Rc6 18. Qb3 Bxc4 19. Nxc4 Qd5 20. Rxe7 Bf6 21. Qb7 Rac8 22. Ne5 Bxe7 23. Nxc6 Qxc6 24. Qxe7 a5 25. h4 Qc4 26. Rb1 Qf7 27. Qxf7+ Kxf7 28. Rb5 Rc1+ 29. Kh2 Rc2 30. Rxa5 Rxf2 31. Kg3 Rc2 32. Ra7+ Kf6 33. a4 h6 34. a5 g5 35. hxg5+ hxg5 36. a6 Rc3 37. Kf2 Rc2+ 38. Kg1 1-0

[Event "Prague Open 2024"]
[Site "Prague"]
[Date "2024.01.06"]
[Round "3.8"]
[White "Rajnys, Vladimir"]
[Black "Morchiashvili, Bachana"]
[Result "0-1"]
[ECO "B24"]
[WhiteElo "2049"]
[BlackElo "2295"]
[Annotator "RC"]
[PlyCount "108"]
[EventDate "2024.01.02"]
[EventType "swiss"]
[EventCountry "CZE"]
[SourceTitle "playchess.com"]
[Source "ChessBase"]
[SourceQuality "1"]
[TimeControl "40/5400+30:1800+30"]

1. e4 c5 2. Nc3 Nc6 3. g3 g6 4. Bg2 Bg7 5. d3 e6 6. Be3 d6 7. Qd2 Nge7 8. Bh6 Bxh6 9. Qxh6 Nd4 10. Qd2 Qa5 11. Nge2 O-O 12. O-O e5 13. f3 Be6 14. Nc1 Rad8 15. Nb3 Qb6 16. Rf2 d5 17. Na4 Nxb3 18. axb3 Qc7 19. Nc3 d4 20. Ne2 b6 21. f4 f6 22. h3 Kg7 23. g4 Nc6 24. f5 Bf7 25. fxg6 Bxg6 26. Ng3 Kh8 27. Raf1 Qg7 28. g5 fxg5 29. Qxg5 Rxf2 30. Rxf2 Rf8 31. Rxf8+ Qxf8 32. Nf5 Nb4 33. Nh4 Qf4 34. Qd8+ Kg7 35. Qe7+ Kh6 36. Nf3 Nxc2 37. Qxe5 Qxe5 38. Nxe5 Na1 39. b4 cxb4 40. Nc6 a5 41. Nxd4 a4 42. Kf2 b3 43. Nb5 Be8 44. Na3 Nc2 45. Nb1 b5 46. e5 Kg5 47. Be4 h6 48. Ke2 b4 49. Bd5 Bd7 50. e6 Nd4+ 51. Ke3 Nxe6 52. Bf3 h5 53. d4 Nc7 54. d5 Nb5 0-1